bitfinex/quotes_ETHUSD_20250827
["timestamp","ask_amount","ask_price","bid_price","bid_amount"]
[1756322611174,0.775,4564.8,4564.5,0.001]
[1756322611338,0.4627,4564.7,4564.5,0.001]
[1756322611741,0.3123,4564.6,4564.5,0.001]
[1756322612190,0.4627,4564.7,4564.5,2.19177853]
[1756322613063,0.4627,4564.7,4564.5,0.001]
[1756322613578,0.3123,4564.6,4564.5,0.001]
[1756322613780,0.3123,4564.6,4564.5,2.19182046]
[1756322614076,0.3123,4564.6,4564.5,0.001]
[1756322614247,0.3123,4564.6,4564.5,2.19182046]
[1756322614454,0.1096,4565.0,4564.5,0.3019]
[1756322614655,0.1096,4565.0,4564.7,2.19068833]
[1756322614887,0.4627,4565.3,4564.7,2.19068833]
[1756322615049,0.1096,4565.2,4564.7,2.19068833]
[1756322615256,0.1096,4565.2,4564.6,2.30037098]
[1756322615456,0.1096,4565.2,4564.8,2.19064103]
[1756322615656,0.1096,4565.2,4564.7,2.19071438]
[1756322615866,0.5723,4565.2,4564.7,2.19071438]
[1756322616069,0.5723,4565.2,4564.9,2.19061342]
[1756322616282,0.5723,4565.2,4564.6,0.1096]
[1756322616482,0.5723,4565.2,4564.6,2.30032855]
[1756322616683,0.5723,4565.2,4564.7,2.19071389]
[1756322617092,0.4627,4565.1,4564.8,2.19067386]
[1756322617296,0.3123,4564.9,4564.6,0.1096]
[1756322617797,0.49008345,4564.8,4564.6,0.1096]
[1756322617967,9.26272447,4564.7,4564.6,0.1096]
[1756322618164,9.57502447,4564.7,4564.6,0.1096]
[1756322618367,5.19077246,4564.6,4564.5,0.001]
[1756322618568,5.30037246,4564.6,4564.5,0.001]
[1756322618781,5.96725598,4564.6,4564.5,0.001]
[1756322618979,6.42995598,4564.6,4564.5,0.001]
[1756322619184,1.23918352,4564.6,4564.5,0.001]
[1756322619486,0.1096,4564.6,4564.5,0.001]
[1756322619675,3.07537246,4564.6,4564.5,0.001]
[1756322620080,0.8846,4564.6,4564.5,0.001]
[1756322620458,0.1096,4564.6,4564.5,0.001]
[1756322620675,0.4219,4564.6,4564.5,0.001]
[1756322620870,0.1096,4564.6,4564.5,0.001]
[1756322621396,0.8846,4564.6,4564.5,0.001]
[1756322622664,3.07537246,4564.6,4564.5,0.001]
[1756322622864,0.8846,4564.6,4564.5,0.001]
[1756322623078,3.07537246,4564.6,4564.5,0.001]
[1756322623273,0.8846,4564.6,4564.5,0.001]
[1756322624162,0.4219,4564.6,4564.5,0.001]
[1756322624700,4.724654,4565.4,4565.0,2.1905805]
[1756322624904,4.724654,4565.4,4565.3,0.3009]
[1756322625117,2.35282095,4567.9,4565.3,0.3009]
[1756322625118,0.1096,4566.3,4565.3,0.7327]
[1756322625263,0.1096,4566.5,4566.2,2.18998844]
[1756322625463,0.1096,4566.5,4565.4,0.4318]
[1756322625464,0.69576,4566.5,4566.0,0.1096]
[1756322625684,0.1096,4566.5,4566.4,2.18990889]
[1756322625902,0.1096,4566.5,4566.0,0.1096]
[1756322626102,5.75,4566.6,4566.0,0.1096]
[1756322626309,5.75,4566.6,4566.1,2.19005278]
[1756322626505,1.685,4566.6,4566.1,2.19005278]
[1756322626814,4.064,4566.5,4566.3,2.18991354]
[1756322626996,5.749,4566.6,4566.5,2.18986094]
[1756322627193,5.748,4566.6,4566.5,2.18986094]
[1756322627369,5.748,4566.6,4566.1,2.19000846]
[1756322627567,4.063,4566.5,4566.1,2.19000846]
[1756322627781,4.063,4566.5,4566.0,0.1096]
[1756322628012,4.063,4566.5,4566.1,2.19004634]
[1756322628195,4.063,4566.5,4566.0,0.1096]
[1756322628373,4.063,4566.5,4566.0,2.29969299]
[1756322628705,4.063,4566.5,4566.2,2.18996714]
[1756322629194,4.063,4566.5,4566.3,2.18994539]
[1756322629368,4.063,4566.5,4566.1,2.19001916]
[1756322629571,4.063,4566.5,4566.2,2.19000407]
[1756322629801,0.2948,4566.3,4566.0,0.1096]
[1756322629968,0.2948,4566.3,4564.5,0.001]
[1756322629969,0.45957506,4566.2,4564.5,0.001]
[1756322630167,4.061,4566.1,4564.5,0.001]
[1756322630367,2.19022369,4565.8,4564.5,0.001]
[1756322630566,5.745,4565.7,4565.0,2.19057765]
[1756322631004,6.58174237,4565.7,4564.8,2.19067648]
[1756322631167,7.01394237,4565.7,4564.5,0.001]
[1756322631371,5.745,4565.7,4565.2,2.1904472]
[1756322632400,5.745,4565.7,4565.1,2.19050027]
[1756322632598,5.745,4565.7,4565.2,2.19047898]
[1756322632902,5.745,4565.7,4564.5,0.4671]
[1756322633096,5.745,4565.7,4564.6,0.27822346]
[1756322633303,5.745,4565.7,4565.2,2.19048453]
[1756322633478,4.057,4565.6,4565.2,2.19048453]
[1756322633682,4.057,4565.6,4564.5,0.4671]
[1756322634504,4.057,4565.6,4565.3,2.1904291]
[1756322635124,4.057,4565.6,4565.4,2.19038384]
[1756322635420,4.057,4565.6,4565.2,2.1904373]
[1756322635589,4.057,4565.6,4564.7,2.19068878]
[1756322635790,4.055,4565.6,4565.5,2.19034059]
[1756322636094,1.685,4565.7,4565.6,2.19029262]
[1756322636292,1.684,4566.8,4565.6,0.777]
[1756322636514,4.055,4566.6,4565.7,2.20266264]
[1756322636699,4.055,4566.6,4565.7,2.19024465]
[1756322636914,4.055,4566.6,4566.3,2.18991532]
[1756322637114,4.055,4566.6,4566.2,2.1899997]
[1756322637420,4.055,4566.6,4565.6,0.4661]
[1756322637623,4.055,4566.6,4566.2,2.18996113]
[1756322637822,4.055,4566.6,4566.1,2.19001752]
[1756322638025,0.4322,4566.5,4566.1,2.19001752]
[1756322638225,4.055,4566.6,4566.1,2.19001752]
[1756322638392,0.4322,4566.4,4566.1,2.19001752]
[1756322638797,0.4322,4566.4,4566.2,2.19000379]
[1756322639928,4.055,4566.6,4566.3,2.18991006]
[1756322640134,4.057,4566.6,4566.3,2.18991006]
[1756322640421,4.057,4566.6,4566.0,0.1096]
[1756322640422,0.2948,4566.4,4566.1,2.19004032]
[1756322640626,0.2948,4566.4,4566.2,2.18999388]
[1756322640830,4.057,4566.6,4566.1,2.19005278]
[1756322640992,4.057,4566.6,4566.5,2.18986094]
[1756322641192,0.002,4566.6,4566.5,2.18986094]
[1756322641427,4.052,4566.6,4566.3,2.18994645]
[1756322641640,4.052,4566.6,4566.2,2.19000015]
[1756322641931,4.4842,4566.6,4566.2,2.19000015]
[1756322642429,4.4842,4566.6,4566.1,2.19004932]
[1756322642930,4.4842,4566.6,4566.2,2.18999762]
[1756322643828,4.4842,4566.6,4566.0,0.1096]
[1756322643999,4.4842,4566.6,4566.4,2.18989512]
[1756322644198,4.052,4566.6,4566.4,2.18989512]
[1756322644528,4.052,4566.6,4566.3,2.18994243]
[1756322644703,4.052,4566.6,4566.1,2.19001238]
[1756322644898,3.93593711,4566.6,4566.2,2.18999191]
[1756322645234,4.046,4566.5,4566.4,2.1898752]
[1756322645429,4.046,4566.5,4566.3,2.1899513]
[1756322646434,0.1116,4566.7,4566.4,0.3109]
[1756322646435,1e-08,4566.7,4566.4,0.3109]
[1756322646596,1e-08,4566.7,4566.6,5.98181298]
[1756322647001,1e-08,4566.7,4566.6,6.75881298]
[1756322647204,1e-08,4567.2,4566.7,3.0]
[1756322647403,1e-08,4567.2,4567.1,2.98157325]
[1756322647617,1e-08,4567.2,4567.1,7.40564316]
[1756322647944,1e-08,4567.2,4567.1,8.17023825]
[1756322648350,1e-08,4567.2,4567.1,8.33378179]
[1756322648716,1e-08,4567.2,4567.1,8.17023825]
[1756322652030,1e-08,4567.8,4567.7,2.98128563]
[1756322652262,1e-08,4567.8,4567.7,7.65934757]
[1756322652461,1e-08,4567.8,4567.7,7.95784985]
[1756322652643,1e-08,4567.8,4567.7,8.42394985]
[1756322654740,1e-08,4567.8,4567.7,7.95784985]
[1756322654957,1e-08,4567.8,4567.7,8.42394985]
[1756322655671,1e-08,4567.8,4567.7,7.95784985]
[1756322656344,1e-08,4567.8,4567.7,10.95784985]
[1756322657382,1e-08,4567.8,4567.7,9.84994985]
[1756322658287,0.29760001,4567.8,4567.7,6.84894985]
[1756322658782,0.29960001,4567.8,4567.7,6.84894985]
[1756322659273,0.73300001,4567.8,4567.7,6.84894985]
[1756322659470,0.29960001,4567.8,4567.7,6.84894985]
[1756322659685,0.00200001,4567.8,4567.7,6.84894985]
[1756322662303,0.29960001,4567.8,4567.7,6.84694985]
[1756322662478,0.73300001,4567.8,4567.7,6.32988563]
[1756322663064,0.73300001,4567.8,4567.7,6.32788563]
[1756322664093,0.00200001,4567.8,4567.7,6.32788563]
[1756322664472,0.00200001,4567.8,4567.7,7.30788563]
[1756322664697,0.00200001,4567.8,4567.7,7.41748563]
[1756322664892,0.00200001,4567.8,4567.7,7.28656985]
[1756322665467,0.00200001,4567.8,4567.7,7.58416985]
[1756322666070,0.00200001,4567.8,4567.7,7.28656985]
[1756322667870,0.00200001,4567.8,4567.7,7.58416985]
[1756322668067,0.29960001,4567.8,4567.7,4.1366]
[1756322668269,0.73300001,4567.8,4567.7,0.1096]
[1756322668483,0.73300001,4567.8,4567.4,0.1096]
[1756322669165,0.4334,4567.7,4567.4,2.29901694]
[1756322669369,0.2976,4567.5,4567.4,0.1096]
[1756322669609,0.731,4567.5,4567.4,0.1096]
[1756322670498,0.731,4567.5,4566.8,2.18967071]
[1756322670671,0.2976,4567.5,4567.1,0.1096]
[1756322670877,0.4334,4567.4,4567.1,0.1096]
[1756322671177,0.2976,4567.2,4567.1,0.1096]
[1756322671706,0.731,4567.2,4567.1,2.29917325]
[1756322672471,0.731,4567.2,4567.1,0.1096]
[1756322674509,0.00200001,4567.8,4567.6,2.18933356]
[1756322674721,0.00200001,4567.8,4567.7,2.48688563]
[1756322676440,0.00200001,4567.8,4567.7,2.48688563]
[1756322678035,0.00200001,4567.8,4567.7,3.27888563]
[1756322678241,0.002,4568.3,4568.2,2.18904601]
[1756322678557,0.002,4568.3,4568.2,6.20504601]
[1756322679669,0.002,4568.3,4568.2,6.50264601]
[1756322679839,0.002,4568.3,4568.2,7.29464601]
[1756322680161,0.002,4568.3,4568.2,7.74514601]
[1756322680456,0.002,4568.3,4568.2,8.90687216]
[1756322681343,0.002,4568.3,4568.2,8.45637216]
[1756322681545,0.002,4568.3,4568.2,8.90687216]
[1756322682160,0.002,4568.3,4568.2,8.15577216]
[1756322682362,0.002,4568.3,4568.2,8.45337216]
[1756322683366,0.733,4568.3,4568.2,2.18904601]
[1756322683548,0.733,4568.3,4568.2,6.20004601]
[1756322684466,0.002,4568.3,4568.2,6.49764601]
[1756322684667,0.002,4568.3,4568.2,6.60724601]
[1756322684872,0.002,4568.3,4568.2,8.29024601]
[1756322685105,0.002,4568.3,4568.2,9.3832348]
[1756322686539,0.002,4568.3,4568.2,9.0856348]
[1756322687467,0.3053,4568.3,4568.2,0.1096]
[1756322687770,0.7719,4568.3,4568.2,2.29864601]
[1756322688467,0.7719,4568.3,4568.2,0.1096]
[1756322689171,0.002,4568.3,4568.2,6.30564601]
[1756322689349,0.3053,4568.3,4568.2,7.04552198]
[1756322689545,0.7719,4568.3,4568.2,2.18904601]
[1756322689945,0.7719,4568.3,4568.1,4.006]
[1756322690149,0.4666,4568.2,4567.9,4.005]
[1756322690355,0.3033,4568.0,4567.9,4.005]
[1756322690685,0.3033,4568.0,4567.8,2.1892241]
[1756322690686,0.7699,4568.0,4567.8,2.1892241]
[1756322690884,0.3033,4568.0,4567.9,2.18918978]
[1756322691769,0.7699,4568.0,4567.9,2.18918978]
[1756322691973,0.7699,4568.0,4567.6,4.005]
[1756322692188,0.4666,4567.9,4567.8,2.1892377]
[1756322692389,0.7699,4567.9,4567.8,2.1892377]
[1756322692605,0.7699,4567.9,4567.8,6.1932377]
[1756322693962,0.7699,4567.9,4567.1,0.001]
[1756322694162,0.7699,4567.9,4567.8,0.001]
[1756322694404,3.2549887,4567.9,4567.8,0.001]
[1756322694700,2.95908978,4567.9,4567.8,0.001]
[1756322695067,2.98645465,4567.9,4567.8,0.001]
[1756322695400,2.95908978,4567.9,4567.8,0.001]
[1756322695567,0.7699,4567.9,4567.8,0.001]
[1756322695897,3.50437978,4567.9,4567.8,0.001]
[1756322696066,1.31519,4567.9,4567.8,0.001]
[1756322696265,3.50437978,4567.9,4567.8,0.001]
[1756322696901,6.50437978,4567.9,4567.8,0.001]
[1756322697469,10.50437978,4567.9,4567.8,0.001]
[1756322699204,10.61397978,4567.9,4567.8,0.001]
[1756322700307,6.61397978,4567.9,4567.8,0.001]
[1756322700604,2.18942943,4567.4,4567.3,0.001]
[1756322700904,5.76427634,4567.4,4567.3,0.001]
[1756322701110,6.50680848,4567.4,4567.3,0.001]
[1756322701806,0.4129,4567.4,4567.3,0.001]
[1756322702010,3.997,4567.6,4567.3,0.3005]
[1756322702208,3.997,4567.7,4567.3,2.489964]
[1756322702513,0.1096,4567.8,4567.5,2.18937426]
[1756322702807,1.683,4568.1,4567.7,0.1096]
[1756322703175,3.87210973,4568.1,4567.7,0.1096]
[1756322703475,4.33870973,4568.1,4567.7,0.1096]
[1756322703774,4.33870973,4568.1,4567.3,0.001]
[1756322703775,0.3033,4567.8,4567.3,0.001]
[1756322704102,6.76135428,4568.0,4567.4,0.1096]
[1756322704308,4.1056,4568.0,4567.4,0.1096]
[1756322704491,0.1096,4568.0,4567.5,0.01239873]
[1756322704668,0.1096,4568.0,4567.6,2.18932613]
[1756322704868,0.1096,4568.0,4567.5,2.1893695]
[1756322705116,0.1096,4568.0,4567.3,0.001]
[1756322705117,0.1096,4568.0,4567.6,2.18933063]
[1756322705314,0.1096,4568.0,4567.3,0.001]
[1756322705518,2.18904879,4568.2,4567.4,2.18942129]
[1756322705676,3.0,4568.2,4567.7,0.1096]
[1756322705876,0.1116,4568.3,4567.7,0.1096]
[1756322706073,3.0,4568.2,4567.7,0.1096]
[1756322707714,0.1116,4568.3,4567.7,2.29888292]
[1756322707917,3.1116,4568.3,4567.7,0.1096]
[1756322708416,5.30059885,4568.3,4567.7,0.1096]
[1756322709114,5.30061057,4568.3,4567.7,0.1096]
[1756322709314,3.1116,4568.3,4567.7,0.1096]
[1756322709821,3.1116,4568.3,4567.8,0.02]
[1756322710145,0.4666,4568.2,4567.8,0.02]
[1756322710485,3.992,4568.3,4568.1,0.1096]
[1756322710685,3.992,4568.3,4568.2,2.18904601]
[1756322711312,3.992,4568.3,4568.1,0.1096]
[1756322711921,0.3033,4568.2,4567.8,0.02]
[1756322712088,0.002,4568.3,4568.0,2.18912414]
[1756322712289,2.18917685,4568.0,4567.8,0.02]
[1756322712524,0.7699,4567.9,4567.8,0.02]
[1756322713337,2.95908978,4567.9,4567.8,0.02]
[1756322713483,3.87300345,4567.9,4567.8,0.02]
[1756322713790,4.00996832,4567.9,4567.8,0.02]
[1756322715133,2.18937944,4567.6,4567.3,0.001]
[1756322715328,3.988,4567.5,4567.3,0.001]
[1756322715514,0.3033,4567.4,4567.3,0.001]
[1756322716524,4.2893,4567.4,4567.3,0.001]
[1756322717609,4.7297,4567.4,4567.3,0.001]
[1756322719196,4.2893,4567.4,4567.3,0.001]
[1756322720907,4.7297,4567.4,4567.3,0.001]
[1756322721317,4.7267,4567.4,4567.3,0.001]
[1756322721832,4.2863,4567.4,4567.3,0.001]
[1756322722205,4.7267,4567.4,4567.3,0.001]
[1756322722525,4.7257,4567.4,4567.3,0.001]
[1756322722730,4.2853,4567.4,4567.3,0.001]
[1756322723729,3.982,4567.4,4567.3,0.001]
[1756322723899,4.717,4567.4,4567.3,0.001]
[1756322724295,0.2946,4567.4,4567.3,0.001]
[1756322724502,1.7936,4567.9,4567.3,0.3023]
[1756322724717,7.2596,4568.0,4567.5,2.18934576]
[1756322725037,3.979,4567.9,4567.4,2.18942004]
[1756322725336,3.979,4567.9,4567.3,0.1106]
[1756322725337,3.979,4567.9,4567.5,2.18937522]
[1756322725638,3.979,4567.9,4567.4,2.18942443]
[1756322726227,3.979,4567.9,4567.3,2.30007733]
[1756322726547,7.2596,4568.0,4567.8,0.3013]
[1756322726703,0.002,4568.2,4567.8,0.4109]
[1756322726902,0.002,4568.2,4567.9,2.18918978]
[1756322727103,0.002,4568.2,4568.1,2.29869393]
[1756322727517,0.002,4568.2,4568.1,2.59999393]
[1756322728755,0.002,4568.2,4568.1,0.1096]
[1756322728947,0.002,4568.2,4568.1,2.29869393]
[1756322729260,7.74136307,4568.2,4567.3,0.001]
[1756322729431,0.77433631,4568.1,4567.3,0.001]
[1756322729746,2.1892361,4567.9,4567.3,0.001]
[1756322729945,0.2946,4567.4,4567.3,0.001]
[1756322730163,4.2706,4567.4,4567.3,0.001]
[1756322730522,4.711,4567.4,4567.3,0.001]
[1756322731065,4.2706,4567.4,4567.3,2.19047737]
[1756322731359,3.976,4567.4,4567.3,2.19047737]
[1756322731566,3.05122838,4568.1,4567.8,2.18923623]
[1756322731567,0.087763,4568.1,4567.8,2.18923623]
[1756322731861,3.974,4568.1,4567.3,0.4391046]
[1756322732240,3.974,4568.1,4567.4,2.18942943]
[1756322732416,3.974,4568.1,4567.6,2.18929475]
[1756322732617,4.4144,4568.1,4567.3,0.4391046]
[1756322733140,0.4404,4568.1,4567.4,2.18938569]
[1756322733347,3.973,4568.0,4567.6,2.18929559]
[1756322733537,3.973,4568.0,4567.4,2.18942943]
[1756322733736,3.973,4568.0,4567.3,0.001]
[1756322733943,4.71474,4568.0,4567.3,0.001]
[1756322734149,3.973,4568.0,4567.3,0.001]
[1756322734355,3.002,4568.2,4567.3,2.19045801]
[1756322734542,3.972,4568.1,4567.3,2.19045801]
[1756322734737,3.972,4568.1,4567.5,2.18933546]
[1756322735246,3.972,4568.1,4567.6,2.18933204]
[1756322735457,4.4124,4568.1,4567.4,2.18938493]
[1756322735753,4.4124,4568.1,4567.6,2.18932516]
[1756322735951,3.971,4568.1,4567.6,2.18932516]
[1756322736448,4.4114,4568.1,4567.6,2.18932516]
[1756322736876,4.4114,4568.1,4567.5,2.18938149]
[1756322737051,3.971,4568.1,4567.8,2.18919615]
[1756322737254,0.002,4568.2,4568.1,2.18909393]
[1756322737573,0.002,4568.2,4568.1,2.49039393]
[1756322737868,0.002,4568.2,4568.1,2.95339393]
[1756322738026,0.002,4568.2,4568.1,3.46764966]
[1756322739430,0.002,4568.2,4568.1,3.57724966]
[1756322739651,0.002,4568.2,4568.1,7.54524966]
[1756322740856,0.2966,4568.2,4568.1,4.0766]
[1756322741027,0.737,4568.2,4568.1,0.1096]
[1756322741425,0.737,4568.2,4568.1,2.29869393]
[1756322741759,0.2966,4568.2,4568.1,2.29869393]
[1756322742128,0.737,4568.2,4568.1,0.1096]
[1756322743555,0.2966,4568.2,4568.1,2.29869393]
[1756322743722,0.002,4568.2,4568.1,2.29869393]
[1756322744635,0.002,4568.2,4568.1,3.04878699]
[1756322745238,0.002,4568.2,4568.1,2.59999393]
[1756322747372,1e-08,4569.3,4569.2,2.98056692]
[1756322747589,0.04,4569.8,4569.7,2.98032746]
[1756322747862,1e-08,4569.8,4569.7,10.9043379]
[1756322748185,0.02,4571.8,4570.7,2.97984868]
[1756322748341,0.02,4571.8,4570.7,8.63621048]
[1756322748664,0.02,4571.8,4570.7,5.07744868]
[1756322748882,1e-08,4570.8,4570.7,12.03844868]
[1756322749061,1e-08,4570.8,4570.7,12.50264868]
[1756322749266,1e-08,4570.8,4570.7,13.97170571]
[1756322749460,1e-08,4571.8,4571.7,2.97937012]
[1756322749630,1e-08,4571.8,4571.7,11.63471996]
[1756322749966,1e-08,4571.8,4571.7,12.50117012]
[1756322750327,1e-08,4571.8,4571.7,12.50017012]
[1756322750526,1e-08,4571.8,4571.7,13.96893175]
[1756322751337,1e-08,4571.8,4571.7,14.42853175]
[1756322752855,1e-08,4571.8,4571.7,14.42653175]
[1756322753888,1e-08,4571.8,4571.7,9.21333175]
[1756322754054,1e-08,4571.8,4571.7,13.63353175]
[1756322754259,1e-08,4571.8,4571.7,14.42553175]
[1756322754682,1e-08,4571.8,4571.7,10.00533175]
[1756322754983,1e-08,4571.8,4571.7,13.96033175]
[1756322755663,1e-08,4571.8,4571.7,10.46953175]
[1756322755850,1e-08,4571.8,4571.7,14.42353175]
[1756322757751,1e-08,4571.8,4571.7,13.95733175]
[1756322758372,1e-08,4571.8,4571.7,13.19173175]
[1756322759165,1e-08,4571.8,4571.7,13.49673175]
[1756322760080,1e-08,4571.8,4571.7,9.54573175]
[1756322760288,1e-08,4571.8,4571.7,13.49673175]
[1756322760496,1e-08,4571.8,4571.7,13.19173175]
[1756322761606,0.29620001,4571.8,4571.7,12.39673175]
[1756322762090,1e-08,4571.8,4571.7,12.39673175]
[1756322762499,1e-08,4571.8,4571.7,8.44873175]
[1756322762680,1e-08,4571.8,4571.7,12.39673175]
[1756322762882,0.29620001,4571.8,4571.7,8.44873175]
[1756322763071,0.75580001,4571.8,4571.7,12.39573175]
[1756322763562,0.75580001,4571.8,4571.7,5.44873175]
[1756322763889,0.75580001,4571.8,4571.7,7.92697012]
[1756322764096,0.29620001,4571.8,4571.7,7.92697012]
[1756322764389,0.75580001,4571.8,4571.7,7.92697012]
[1756322766500,0.29820001,4571.8,4571.7,7.92597012]
[1756322767096,0.00200001,4571.8,4571.7,7.92597012]
[1756322767409,0.29820001,4571.8,4571.7,7.92597012]
[1756322767774,0.75780001,4571.8,4571.7,7.92597012]
[1756322768998,0.00200001,4571.8,4571.7,7.92597012]
[1756322769707,0.29820001,4571.8,4571.7,7.92597012]
[1756322769883,0.00200001,4571.8,4571.7,8.93731175]
[1756322770088,0.00200001,4571.8,4571.7,9.24231175]
[1756322770287,0.75780001,4571.8,4571.7,2.29697012]
[1756322770487,0.75780001,4571.8,4571.7,6.23897012]
[1756322770709,0.75780001,4571.8,4571.7,6.12937012]
[1756322772903,0.00200001,4571.8,4571.7,6.12937012]
[1756322773214,0.00200001,4571.8,4571.7,6.96105175]
[1756322773578,0.29820001,4571.8,4571.7,6.96105175]
[1756322774388,0.00200001,4571.8,4571.7,6.96105175]
[1756322774609,0.29820001,4571.8,4571.7,6.96105175]
[1756322774809,0.75780001,4571.8,4571.7,6.96105175]
[1756322775522,0.29820001,4571.8,4571.7,6.96105175]
[1756322776119,0.00200001,4571.8,4571.7,6.96105175]
[1756322776484,1e-08,4571.8,4571.7,11.05805175]
[1756322776824,0.00964979,4572.8,4572.7,2.18689177]
[1756322777110,0.00964979,4572.8,4572.7,6.12489177]
[1756322777278,0.74984979,4572.8,4572.7,6.12489177]
[1756322778476,0.00964979,4572.8,4572.7,6.12489177]
[1756322778703,0.00964979,4572.8,4572.7,7.41137694]
[1756322779802,0.00964979,4572.8,4572.7,7.57554134]
[1756322780103,1e-08,4572.8,4572.7,11.80044134]
[1756322780689,1e-08,4572.8,4572.7,11.91004134]
[1756322782023,1e-08,4572.8,4572.7,11.47714134]
[1756322783512,1e-08,4572.8,4572.7,11.91004134]
[1756322784108,1e-08,4572.8,4572.7,11.47714134]
[1756322784625,1e-08,4572.8,4572.7,11.91004134]
[1756322785097,1e-08,4573.3,4573.2,2.97865267]
[1756322785301,1e-08,4573.3,4573.2,12.40762196]
[1756322785504,1e-08,4573.3,4573.2,8.57389006]
[1756322785910,1e-08,4573.3,4573.2,12.50489006]
[1756322786622,1e-08,4573.3,4573.2,12.21779006]
[1756322787714,1e-08,4573.3,4573.2,12.21579006]
[1756322787898,0.31040001,4573.3,4573.2,7.49479006]
[1756322788100,0.74020001,4573.3,4573.2,5.7206]
[1756322788330,0.74020001,4573.3,4573.2,1.7916]
[1756322788531,0.74020001,4573.3,4573.2,4.0386]
[1756322789027,0.74020001,4573.3,4573.2,3.929]
[1756322789424,0.74020001,4573.3,4573.0,0.1096]
[1756322789725,1.03560478,4573.3,4573.1,3.928]
[1756322789932,0.31040001,4573.3,4573.1,3.928]
[1756322790243,0.4298,4573.2,4573.1,3.928]
[1756322790548,2.1868501,4572.8,4572.5,0.1096]
[1756322790825,0.3104,4572.6,4572.4,3.928]
[1756322791004,0.4298,4572.5,4572.4,3.928]
[1756322791206,0.7402,4572.5,4572.4,3.928]
[1756322791397,0.7402,4572.5,4572.4,6.11503525]
[1756322791600,0.7402,4572.5,4572.4,3.928]
[1756322791810,0.7402,4572.5,4572.4,6.11503525]
[1756322792006,0.7402,4572.5,4572.4,3.928]
[1756322792794,0.7402,4572.5,4572.2,0.1096]
[1756322792996,0.02733794,4572.4,4572.3,3.926]
[1756322793308,0.7402,4572.4,4572.1,3.926]
[1756322793509,0.4298,4572.3,4572.1,3.926]
[1756322793710,0.7402,4572.2,4572.1,3.926]
[1756322794227,2.18717875,4572.1,4571.6,0.001]
[1756322794545,0.3200782,4572.0,4571.6,0.001]
[1756322794696,0.3104,4571.7,4571.6,0.001]
[1756322795202,0.7402,4571.7,4571.6,0.001]
[1756322799606,2.92757012,4571.7,4571.6,0.001]
[1756322799806,5.92757012,4571.7,4571.6,0.001]
[1756322801205,9.84857012,4571.7,4571.6,0.001]
[1756322801435,10.92068438,4571.7,4571.6,0.001]
[1756322802312,6.99968438,4571.7,4571.6,0.001]
[1756322802617,10.92068438,4571.7,4571.6,0.001]
[1756322803019,27.76689648,4571.7,4571.6,0.001]
[1756322803219,2.18756152,4571.3,4571.2,0.001]
[1756322803431,5.68118776,4571.3,4571.2,0.001]
[1756322803616,5.92776152,4571.3,4571.2,0.001]
[1756322804217,6.03736152,4571.3,4571.2,0.001]
[1756322804415,9.95736152,4571.3,4571.2,0.001]
[1756322805716,6.03736152,4571.3,4571.2,0.001]
[1756322806042,10.77884689,4571.3,4571.2,0.001]
[1756322807219,11.57084689,4571.3,4571.2,0.001]
[1756322808447,10.77884689,4571.3,4571.2,0.001]
[1756322808629,10.77784689,4571.3,4571.2,0.001]
[1756322809243,6.85984689,4571.3,4571.2,0.001]
[1756322809434,10.77684689,4571.3,4571.2,0.001]
[1756322810548,10.77684689,4571.3,4570.7,0.001]
[1756322810549,2.18780082,4570.8,4570.7,0.001]
[1756322810847,11.22072841,4570.8,4570.7,0.001]
[1756322811154,11.22072841,4570.8,4569.2,2.29916543]
[1756322811155,5.97984868,4570.7,4569.2,0.001]
[1756322811355,2.18851902,4569.3,4569.2,0.001]
[1756322811562,2.18871063,4568.9,4568.8,0.02]
[1756322811761,6.55000005,4568.9,4568.8,0.02]
[1756322811964,7.25444117,4568.9,4568.8,0.02]
[1756322812458,4.33393054,4568.9,4568.8,0.02]
[1756322812658,6.84360005,4568.9,4568.8,0.02]
[1756322812830,7.25444117,4568.9,4568.8,0.02]
[1756322813264,10.25444117,4568.9,4568.8,0.02]
[1756322814926,6.33844117,4568.9,4568.8,0.02]
[1756322815166,10.25344117,4568.9,4568.8,0.02]
[1756322817262,11.04544117,4568.9,4568.8,0.02]
[1756322817627,7.13044117,4568.9,4568.8,0.02]
[1756322817850,11.04344117,4568.9,4568.8,0.02]
[1756322818050,2.18902146,4568.3,4567.8,0.02]
[1756322818235,2.48269393,4568.1,4567.8,0.02]
[1756322818561,5.92089393,4568.1,4567.8,0.02]
[1756322818765,5.48269393,4568.1,4567.8,0.02]
[1756322819060,7.2066,4568.1,4567.8,0.02]
[1756322819465,9.39569393,4568.1,4567.8,0.02]
[1756322819625,7.81018322,4568.1,4567.8,0.02]
[1756322819831,3.0,4568.1,4568.0,51.981017]
[1756322820040,6.912,4568.1,4568.0,51.981017]
[1756322820282,9.10109393,4568.1,4568.0,51.687017]
[1756322820565,6.912,4568.1,4568.0,51.687017]
[1756322820729,1.683,4568.2,4568.0,51.981017]
[1756322820926,1.683,4569.0,4568.1,2.59565518]
[1756322821235,1.683,4569.0,4568.2,0.4524]
[1756322821236,2.18866272,4569.0,4568.2,0.4524]
[1756322821444,0.1096,4568.5,4568.2,0.4524]
[1756322821763,3.912,4569.1,4568.4,0.294]
[1756322821764,3.911,4568.6,4568.4,0.294]
[1756322822571,3.911,4568.6,4568.0,51.688017]
[1756322822867,6.09986062,4568.6,4568.0,51.688017]
[1756322823049,2.18890226,4568.5,4568.0,51.688017]
[1756322823230,4.75081817,4568.6,4568.0,51.688017]
[1756322823231,0.1096,4568.1,4568.0,51.688017]
[1756322823429,4.0206,4568.1,4568.0,51.982017]